[Event "5th Sharjah Masters 2022"]
[Site "Sharjah"]
[Date "2022.05.23"]
[Round "3.3"]
[White "Sadhwani, Raunak"]
[Black "Gupta, Abhijeet"]
[Result "0-1"]
[ECO "C50"]
[WhiteElo "2619"]
[BlackElo "2606"]
[Annotator "TA"]
[PlyCount "80"]
[EventDate "2022.05.21"]
[EventType "swiss"]
[EventCountry "UAE"]
[SourceTitle "playchess.com"]
[Source "ChessBase"]
[SourceQuality "1"]
[TimeControl "5400+30"]

{[%evp 9,80,17,20,18,25,5,11,12,20,2,12,9,14,17,16,0,-3,-14,0,0,15,0,16,16,16,16,14,22,13,14,22,0,0,0,0,0,0,-4,0,0,25,0,0,0,0,0,0,-21,-8,-81,-73,-124,-127,-116,-126,-110,-109,-689,-708,-1325,-410,-410,-425,-429,-426,-417,-322,-322,-322,-417,-414,-380,-282]} 1. e4 {[%emt 0:00:03]} e5 {[%emt 0:00:05]} 2. Nf3 {[%emt 0:00:04]} Nc6 {[%emt 0:00:04]} 3. Bc4 {[%emt 0:00:07]} Nf6 {[%emt 0:00:09]} 4. d3 {[%emt 0:00:04]} Bc5 {[%emt 0:00:11]} 5. a4 {[%emt 0:00:04]} a6 {[%emt 0:00:20]} 6. O-O {[%emt 0:01:06] C50: Hungarian Defence and Giuoco Pianissimo.} d6 {[%emt 0:00:10]} 7. a5 {[%emt 0:00:06]} h6 {[%emt 0:00:45]} 8. c3 {[%emt 0:02:33] The position is equal.} Ba7 {[%emt 0:01:08]} 9. Re1 {[%emt 0:04:22]} O-O {[%emt 0:01:06]} 10. h3 {[%emt 0:00:39]} Ne7 {[%emt 0:00:56]} 11. Nbd2 {[%emt 0:02:20]} Ng6 {[%emt 0:00:38]} 12. Nf1 {[%emt 0:02:10]} c6 {[%emt 0:00:42]} 13. Bb3 {[%emt 0:04:55] [#]} d5 $5 $146 {[%emt 0:04:13][%mdl 8] An interesting novelty.} ({Predecessor:} 13... Re8 14. Be3 Bxe3 15. Nxe3 d5 16. Qc2 Be6 17. Ba2 Qc7 18. b4 Rad8 19. Nf1 Nf4 {0-1 (37) Matlakov,M (2674)-Sargsyan,S (2628) Warsaw 2021}) 14. exd5 {[%emt 0:10:06]} Nxd5 {[%emt 0:00:05]} 15. Ng3 {[%emt 0:00:20]} Re8 {[%emt 0:06:06]} 16. d4 {[%emt 0:09:00]} exd4 {[%emt 0:00:29]} 17. Rxe8+ {[%emt 0:00:08]} Qxe8 {[%emt 0:00:03]} 18. Bxd5 {[%emt 0:00:18]} cxd5 {[%emt 0:00:04]} 19. Nxd4 {[%emt 0:00:06]} Bb8 {[%emt 0:00:11]} 20. Nf1 {[%emt 0:04:36]} Bc7 {[%emt 0:02:22]} 21. Bd2 {[%emt 0:09:40]} Qd8 {[%emt 0:05:09]} 22. Qa4 {[%emt 0:00:09]} Rb8 {[%emt 0:00:29]} 23. Qa3 {[%emt 0:08:15]} (23. Re1 $5 {[%cal Re1e8]} Bd7 24. Qa2 $11) 23... Be6 {[%emt 0:05:36]} 24. Re1 {[%emt 0:00:58]} Nf8 {[%emt 0:02:46]} 25. b4 {[%emt 0:00:38]} Qd6 {[%emt 0:01:31]} 26. Nb3 {[%emt 0:07:09]} Bd7 {[%emt 0:06:21][%cal Be6d7,Bd7c6,Bc6g2][%mdl 32]} 27. Qc1 {[%emt 0:02:23]} Ng6 {[%emt 0:02:52][%cal Bf8g6,Bg6h4,Bh4f3,Bf3e1][%mdl 32]} 28. Nc5 {[%emt 0:01:45]} Bc6 {[%emt 0:14:22]} 29. Ng3 {[%emt 0:01:28]} (29. Nb3 $11 {keeps the balance.}) 29... d4 {[%emt 0:01:36]} 30. Nce4 {[%emt 0:00:10]} (30. c4 $142) 30... Qd7 $1 $17 {[%emt 0:02:16] aiming for ...f5.} 31. cxd4 {[%emt 0:22:09]} Bxg3 {[%emt 0:03:27]} ({Much worse is} 31... Qxd4 $6 32. Bc3 Qd5 33. Qxh6 gxh6 34. Nf6+ Kf8 35. Nh7+ Kg8 36. Nf6+ Kf8 37. Nh7+ Kg8 38. Nf6+ $11) 32. Nxg3 {[%emt 0:00:05] [#]} Nh4 $1 $40 {[%emt 0:03:42][%mdl 128] Black attacks with force.} 33. Bxh6 $2 {[%emt 0:02:30][%mdl 8192] White does not recover from this.} Bxg2 $19 {[%emt 0:01:15]} ({Weaker is} 33... gxh6 34. Qf4 Qd8 35. Nh5 $11) 34. Qf4 {[%emt 0:01:19] [#]} Nf3+ {[%emt 0:04:08]} (34... Qxh3 $142 $1 35. Qxh4 Qxh4 36. Kxg2 Qxh6) 35. Kxg2 {[%emt 0:00:05]} Nxe1+ {[%emt 0:00:04]} 36. Kh2 {[%emt 0:00:09]} Re8 {[%emt 0:01:14]} 37. Nf5 {[%emt 0:00:07]} Qd5 {[%emt 0:11:45][%csl Ge1][%cal Rd5g2]} 38. Qg4 {[%emt 0:01:33][%csl Gf5,Gh6][%cal Rg4g7] Against Qg2+} g6 {[%emt 0:00:05] Chess con chili.} 39. Nh4 {[%emt 0:00:10]} Qe4 {[%emt 0:02:29]} 40. Qd7 {[%emt 0:01:57]} Qe2 {[%emt 0:01:01] Weighted Error Value: White=0.44/Black=0.17 (very precise)} 0-1

[Event "5th Sharjah Masters 2022"]
[Site "Sharjah"]
[Date "2022.05.23"]
[Round "3.4"]
[White "Salem, A.R. Saleh"]
[Black "Hakobyan, Aram"]
[Result "1-0"]
[ECO "E53"]
[WhiteElo "2690"]
[BlackElo "2615"]
[Annotator "TA"]
[PlyCount "99"]
[EventDate "2022.05.21"]
[EventType "swiss"]
[EventCountry "UAE"]
[SourceTitle "playchess.com"]
[Source "ChessBase"]
[SourceQuality "1"]
[TimeControl "5400+30"]

{[%evp 18,99,0,0,0,-5,2,7,0,0,0,0,0,0,0,0,0,0,27,18,14,5,5,0,17,18,98,99,80,81,90,85,113,62,79,75,66,70,70,72,145,126,129,127,119,127,113,115,120,130,131,131,143,146,318,326,322,313,314,334,323,324,318,319,312,312,331,339,333,324,365,369,362,354,412,406,454,450,478,424,832,866,727,687]} 1. d4 {[%emt 0:00:55]} Nf6 {[%emt 0:00:09]} 2. c4 {[%emt 0:00:18]} e6 {[%emt 0:00:05]} 3. Nc3 {[%emt 0:00:06]} Bb4 {[%emt 0:00:07]} 4. e3 {[%emt 0:00:10]} O-O {[%emt 0:00:23]} 5. Bd3 {[%emt 0:00:09]} d5 {[%emt 0:00:12]} 6. a3 {[%emt 0:00:06]} Bxc3+ {[%emt 0:00:36]} 7. bxc3 {[%emt 0:01:17]} dxc4 {[%emt 0:00:09]} 8. Bxc4 {[%emt 0:00:11]} c5 {[%emt 0:00:37]} 9. Nf3 {[%emt 0:00:10]} Qc7 {[%emt 0:00:29]} 10. Be2 {[%emt 0:00:08]} b6 {[%emt 0:00:56] E53: Nimzo-Indian: Rubinstein: Main Line (4...0-0 5 Nf3 d5 6 Bd3 c5 7 0-0).} 11. Bb2 $1 {[%emt 0:00:16][%mdl 4] is currently scoring better than 11.0-0.} Bb7 {[%emt 0:01:33]} 12. c4 {[%emt 0:00:14]} Nbd7 {[%emt 0:00:49][%cal Bb8d7,Bd7f8,Bf8g6][%mdl 32] The position is equal.} 13. O-O {[%emt 0:00:13]} Rfd8 {[%emt 0:00:44]} 14. h3 {[%emt 0:00:45]} Rac8 {[%emt 0:01:01]} 15. Rc1 {[%emt 0:00:10]} Nf8 {[%emt 0:11:10] [#]} 16. a4 $5 $146 {[%emt 0:00:33][%mdl 8] An interesting novelty.} ({Predecessor:} 16. Qb3 Ng6 17. Rfd1 cxd4 18. exd4 Qf4 19. Qe3 Qf5 20. Ne1 Nf4 21. Bf1 h6 22. a4 Rd7 23. Nd3 {½-½ (23) Wojtaszek,R (2728)-Huschenbeth,N (2628) Germany 2021}) 16... Ng6 {[%emt 0:03:36]} 17. Re1 {[%emt 0:00:33]} cxd4 {[%emt 0:11:00]} 18. exd4 {[%emt 0:00:19]} Qf4 {[%emt 0:01:07]} 19. Qb3 {[%emt 0:12:36]} Ne4 {[%emt 0:13:11]} 20. Rc2 {[%emt 0:00:22][%cal Oa4a5]} Qf5 {[%emt 0:10:23]} 21. Bf1 {[%emt 0:08:16][%cal Oa4a5]} Ng5 {[%emt 0:14:08]} (21... h6 $11) 22. Nxg5 $16 {[%emt 0:02:04]} Qxg5 {[%emt 0:00:03]} 23. Re3 {[%emt 0:00:20]} Bc6 {[%emt 0:07:30]} 24. Rc1 {[%emt 0:08:21]} Qf4 {[%emt 0:03:18]} 25. Rg3 {[%emt 0:08:46]} (25. a5 $16) 25... e5 {[%emt 0:06:37]} (25... Rxd4 $2 26. Rg4 $18) 26. Rg4 {[%emt 0:08:49]} Qd2 {[%emt 0:00:07][%cal Re5d4]} 27. dxe5 {[%emt 0:01:48]} Bxa4 {[%emt 0:00:04]} 28. Qa3 {[%emt 0:01:02]} Bd1 {[%emt 0:05:36]} ({Black should try} 28... Be8) 29. Bc3 {[%emt 0:00:40]} Qh6 {[%emt 0:01:59]} 30. Rd4 {[%emt 0:06:49]} Rxd4 {[%emt 0:01:04]} 31. Bxd4 {[%emt 0:00:02]} Qd2 {[%emt 0:00:07]} 32. Be3 {[%emt 0:09:19]} Qd7 {[%emt 0:00:13]} 33. Qd6 {[%emt 0:00:07]} Ba4 {[%emt 0:00:44] [#]} 34. Ra1 $1 $36 {[%emt 0:00:08][%mdl 2048] Black is under strong pressure.} Qe8 {[%emt 0:01:57]} 35. e6 {[%emt 0:04:34] Strongly threatening exf7+. White is more active.} Bc6 $2 {[%emt 0:02:45] Loses the game.} (35... f6 $16 {is a better defense.} 36. e7 Kh8) 36. exf7+ $18 {[%emt 0:00:33]} ({Much less strong is} 36. Rxa7 Qxe6 37. Qxe6 fxe6 38. Bxb6 Rb8 $18) 36... Qxf7 {[%emt 0:00:04] [#]} 37. Rxa7 $3 {[%emt 0:00:06][%mdl 512]} Qxa7 {[%emt 0:00:19]} 38. Qe6+ {[%emt 0:00:05]} Qf7 {[%emt 0:00:04]} 39. Qxc8+ {[%emt 0:00:04]} Qe8 {[%emt 0:00:04]} 40. Qxe8+ {[%emt 0:02:01]} Bxe8 {[%emt 0:00:04]} 41. Bxb6 {[%emt 0:00:05][%mdl 4096] Endgame KBB-KBN} Bc6 {[%emt 0:00:03]} 42. f3 {[%emt 0:00:36]} Kf7 {[%emt 0:00:55]} 43. Kf2 {[%emt 0:00:06]} Nf4 {[%emt 0:00:17]} 44. Be3 {[%emt 0:00:20]} Ne6 {[%emt 0:00:11]} 45. Bd3 {[%emt 0:00:05]} g6 {[%emt 0:00:17]} 46. h4 {[%emt 0:00:26]} Kg7 {[%emt 0:00:55]} 47. g4 {[%emt 0:00:17] White is clearly winning.} h6 {[%emt 0:00:28]} 48. Bc1 {[%emt 0:00:25]} g5 {[%emt 0:00:07]} (48... Ba4 $142 49. f4 Bd7) 49. Bf5 {[%emt 0:01:49]} Kf6 {[%emt 0:00:07]} 50. Bxe6 {[%emt 0:00:17] Weighted Error Value: White=0.04 (flawless) /Black=0.22 (precise)} 1-0

[Event "5th Sharjah Masters 2022"]
[Site "Sharjah"]
[Date "2022.05.23"]
[Round "3.5"]
[White "Sarana, Alexey"]
[Black "Hovhannisyan, Robert"]
[Result "1-0"]
[ECO "D11"]
[WhiteElo "2675"]
[BlackElo "2607"]
[Annotator "TA"]
[PlyCount "71"]
[EventDate "2022.05.21"]
[EventType "swiss"]
[EventCountry "UAE"]
[SourceTitle "playchess.com"]
[Source "ChessBase"]
[SourceQuality "1"]
[TimeControl "5400+30"]

{[%evp 13,71,12,20,13,38,14,4,13,6,0,0,0,15,0,14,12,25,0,0,0,15,0,44,32,47,40,58,54,30,50,96,77,147,108,148,150,154,166,162,131,135,125,129,79,1016,991,29982,29983,29983,29984,29984,29985,29985,29986,29986,29987,29987,29988,29988,29989]} 1. d4 {[%emt 0:00:02]} d5 {[%emt 0:00:11]} 2. c4 {[%emt 0:00:06]} c6 {[%emt 0:00:04]} 3. Nf3 {[%emt 0:00:08]} Nf6 {[%emt 0:00:07]} 4. e3 {[%emt 0:00:07]} Bg4 {[%emt 0:00:25]} 5. h3 {[%emt 0:00:17]} Bh5 {[%emt 0:00:26]} 6. Nc3 {[%emt 0:00:18]} e6 {[%emt 0:00:14]} 7. g4 {[%emt 0:00:13]} Bg6 {[%emt 0:00:06]} 8. Ne5 {[%emt 0:00:05] next h4 is good for White. D11: Slav Defence: 3 Nf3 sidelines and 3...Nf6 4 e3 Bg4.} Nbd7 {[%emt 0:00:24]} 9. h4 {[%emt 0:00:34]} dxc4 $1 {[%emt 0:00:58] ...Nxe5 is the strong threat.} 10. Nxg6 {[%emt 0:00:21] The position is equal.} hxg6 {[%emt 0:00:06]} 11. g5 {[%emt 0:00:04] 11.g5 scores better than 11.Bxc4.} Nd5 {[%emt 0:01:12]} 12. Bxc4 {[%emt 0:00:09]} Bb4 {[%emt 0:03:04] [#]} 13. Qc2 $5 $146 {[%emt 0:01:27][%mdl 8] New and interesting.} ({Predecessor:} 13. Bd2 Qe7 14. Qb3 N7b6 15. Be2 O-O-O 16. a3 Ba5 17. O-O-O e5 18. dxe5 Qxe5 19. Nxd5 Bxd2+ 20. Rxd2 Rxd5 21. Rxd5 cxd5 {½-½ (55) Caruana,F (2796)-Vachier Lagrave,M (2719) Tromsoe 2013}) 13... Qe7 {[%emt 0:07:21]} 14. e4 {[%emt 0:00:31][%cal Be3e4,Be4d5][%mdl 32]} N5b6 {[%emt 0:01:25]} 15. Be2 {[%emt 0:00:09]} e5 {[%emt 0:03:52]} 16. a3 {[%emt 0:00:16]} Bd6 {[%emt 0:01:37]} 17. d5 {[%emt 0:00:16]} Bc5 {[%emt 0:06:20]} 18. Be3 {[%emt 0:01:45]} cxd5 {[%emt 0:09:47]} 19. exd5 {[%emt 0:00:49]} Rc8 {[%emt 0:01:33]} 20. Rd1 {[%emt 0:26:11]} Bxe3 {[%emt 0:15:01]} 21. fxe3 {[%emt 0:00:15]} O-O {[%emt 0:03:40]} (21... a6 $14 {might be stronger.}) 22. Qe4 {[%emt 0:06:38] aiming for d6. White is more active.} Nc5 {[%emt 0:06:00]} (22... f5 $142 23. gxf6 Qxf6) 23. Qg4 {[%emt 0:01:00]} e4 {[%emt 0:06:51][%cal Oc5d3]} 24. h5 {[%emt 0:01:56] Hoping for hxg6.} Nd3+ {[%emt 0:00:55]} 25. Bxd3 {[%emt 0:00:30]} exd3 {[%emt 0:00:06]} 26. Rxd3 {[%emt 0:08:39]} Nc4 {[%emt 0:03:22]} 27. hxg6 $1 {[%emt 0:07:30]} fxg6 {[%emt 0:00:06] [#]} (27... Nxb2 $2 {is a self mate.} 28. Rh8+ $3 {[%mdl 512]} Kxh8 29. Qh5+ Kg8 30. Qh7#) 28. Qh3 $1 {[%emt 0:03:23] Black must now prevent Ke2.} Nxb2 $2 {[%emt 0:02:42][%mdl 8192] [#] A mistake that costs the game.} (28... Qe5 $16 29. d6 Nxd6) 29. Rd4 $1 $18 {[%emt 0:03:22] And now Qh7+ would win.} Rxc3 {[%emt 0:26:05]} (29... Nc4 30. Qh8+) 30. Qh8+ {[%emt 0:00:52] White mates.} Kf7 {[%emt 0:00:04]} 31. O-O+ {[%emt 0:00:55]} Ke8 {[%emt 0:00:03]} 32. Rxf8+ {[%emt 0:00:07]} Kd7 {[%emt 0:00:15]} 33. Qh3+ {[%emt 0:00:05]} Kd6 {[%emt 0:00:09]} 34. Qg3+ {[%emt 0:00:05]} Kd7 {[%emt 0:01:18]} 35. Qg4+ {[%emt 0:00:07]} Kd6 {[%emt 0:00:09]} 36. Qf4+ {[%emt 0:39:18] Weighted Error Value: White=0.05 (flawless) /Black=0.35} 1-0

[Event "5th Sharjah Masters 2022"]
[Site "Sharjah"]
[Date "2022.05.23"]
[Round "3.6"]
[White "Puranik, Abhimanyu"]
[Black "Deac, Bogdan-Daniel"]
[Result "0-1"]
[ECO "B95"]
[WhiteElo "2608"]
[BlackElo "2671"]
[Annotator "TA"]
[PlyCount "58"]
[EventDate "2022.05.21"]
[EventType "swiss"]
[EventCountry "UAE"]
[SourceTitle "playchess.com"]
[Source "ChessBase"]
[SourceQuality "1"]
[TimeControl "5400+30"]

{[%evp 15,58,0,1,0,0,-24,12,0,16,-28,-2,-54,-68,-66,-62,-94,-28,-87,-70,-122,-100,-132,-110,-153,-135,-151,-132,-172,-107,-287,-291,-894,-879,-845,-854,-1895,-702,-1187,-1071,-1074,-1043,-1461,-1405,-29961,-3670]} 1. e4 {[%emt 0:00:22]} c5 {[%emt 0:00:02]} 2. Nc3 {[%emt 0:00:14]} d6 {[%emt 0:00:09]} 3. Nf3 {[%emt 0:00:21]} a6 {[%emt 0:00:15]} 4. d4 {[%emt 0:00:13]} cxd4 {[%emt 0:00:03]} 5. Nxd4 {[%emt 0:00:04]} Nf6 {[%emt 0:00:07]} 6. Bg5 {[%emt 0:01:55]} e6 {[%emt 0:01:02]} 7. Qf3 {[%emt 0:01:45]} Nbd7 {[%emt 0:02:07][%cal Bb8d7,Bd7e5,Be5g4][%mdl 32]} 8. O-O-O {[%emt 0:01:23]} Qc7 {[%emt 0:00:40]} 9. g4 {[%emt 0:07:24] B95: Sicilian Najdorf: 6 Bg5 e6, unusual White 7th moves.} b5 {[%emt 0:16:56]} 10. a3 {[%emt 0:05:06]} Bb7 {[%emt 0:09:42]} 11. Bg2 {[%emt 0:01:32] [#] The position is equal.} h6 $146 {[%emt 0:04:46]} ({Predecessor:} 11... Be7 12. Qe2 Rc8 13. Bh4 Nb6 14. g5 Nfd7 15. f4 Nc4 16. Be1 O-O 17. h4 Ndb6 {0-1 (48) Matsukevich,V (2271)-Quevedo Garcia,V (2283) ICCF email 2019}) 12. Bd2 {[%emt 0:03:34]} Ne5 {[%emt 0:05:09]} 13. Qh3 {[%emt 0:07:15]} ({White should play} 13. Qg3 $11) 13... Nexg4 $15 {[%emt 0:10:39]} 14. Rhf1 {[%emt 0:08:25]} Qb6 $36 {[%emt 0:03:09][%mdl 2048] White is under pressure.} 15. Be1 {[%emt 0:01:47]} g5 {[%emt 0:06:18]} ({Black should try} 15... Be7 $17) 16. Kb1 {[%emt 0:06:51]} (16. f4 $11 {remains equal.} Bg7 17. Bf3) 16... Rg8 $17 {[%emt 0:06:47]} 17. Nce2 {[%emt 0:08:59]} (17. Bf3 $15 Ne5 18. Bg2) 17... Be7 {[%emt 0:08:59]} 18. Nb3 {[%emt 0:07:50]} a5 {[%emt 0:04:25] Black is more active.} 19. f3 {[%emt 0:09:11] [#]} Ne5 {[%emt 0:00:42]} ({Inferior is} 19... Ne3 20. Bf2 d5 21. e5 $11) 20. f4 {[%emt 0:01:53]} gxf4 {[%emt 0:03:02]} 21. Rxf4 {[%emt 0:00:16] [#]} b4 $1 {[%emt 0:03:58] ...bxa3 is the strong threat.} 22. axb4 {[%emt 0:00:06] White does not recover from this.} (22. a4 $17 {might work better.}) 22... axb4 $19 {[%emt 0:00:26]} 23. Ned4 $2 {[%emt 0:00:02] [#]} (23. Bf2 Qa6 24. Nec1) 23... Rxg2 $1 {[%emt 0:11:14][%mdl 512]} 24. Qxg2 {[%emt 0:00:06]} Qa6 {[%emt 0:00:16] Hoping for ...Qa2+.} 25. Bxb4 {[%emt 0:15:46]} Nxe4 {[%emt 0:01:29]} ({Not} 25... Ng6 $2 26. Rxf6 Qa2+ 27. Kc1 Bxf6 28. Kd2 $19) (25... Qa2+ $142 26. Kc1 Nc4) 26. Rxe4 {[%emt 0:03:24]} Bxe4 {[%emt 0:00:30] This bishop pair is nice.} 27. Qg8+ {[%emt 0:02:38]} Kd7 {[%emt 0:00:06]} 28. Nc5+ {[%emt 0:00:36]} dxc5 {[%emt 0:00:05][%csl Ga8][%cal Ra6a1]} 29. Nf3+ {[%emt 0:00:01]} Kc7 {[%emt 0:00:17] Weighted Error Value: White=1.36/Black=0.30} 0-1

[Event "5th Sharjah Masters 2022"]
[Site "Sharjah"]
[Date "2022.05.23"]
[Round "3.7"]
[White "Martirosyan, Haik M."]
[Black "Sethuraman, S.P."]
[Result "1/2-1/2"]
[ECO "D23"]
[WhiteElo "2652"]
[BlackElo "2613"]
[Annotator "TA"]
[PlyCount "130"]
[EventDate "2022.05.21"]
[EventType "swiss"]
[EventCountry "UAE"]
[SourceTitle "playchess.com"]
[Source "ChessBase"]
[SourceQuality "1"]
[TimeControl "5400+30"]

{[%evp 9,130,-6,6,12,15,10,20,24,17,13,13,4,11,0,0,6,12,7,21,13,13,15,18,16,14,10,16,0,12,17,21,25,23,-25,21,-18,7,16,38,20,25,14,17,20,27,29,28,14,35,31,31,33,27,8,12,9,28,32,28,21,43,31,36,38,42,28,48,49,46,48,60,54,54,50,65,65,141,136,130,105,121,70,72,94,200,57,58,70,215,215,215,215,223,11,11,11,22,8,71,71,71,71,70,70,70,8,8,8,8,8,8,8,8,8,8,8,8,8,8,8,8,8,8]} 1. d4 {[%emt 0:00:05]} d5 {[%emt 0:00:17]} 2. c4 {[%emt 0:00:12]} c6 {[%emt 0:00:06]} 3. Nf3 {[%emt 0:00:09]} Nf6 {[%emt 0:00:07]} 4. Qb3 {[%emt 0:00:48]} dxc4 {[%emt 0:00:07]} 5. Qxc4 {[%emt 0:00:04]} Bg4 {[%emt 0:00:05]} 6. Nc3 {[%emt 0:01:36] D23: Queen's Gambit Accepted: 3 Nf3 Nf6 sidelines.} Nbd7 {[%emt 0:00:07]} 7. Bf4 $1 {[%emt 0:01:06] [#]} Bf5 $146 {[%emt 0:00:10]} ({Predecessor:} 7... e6 8. e4 Bxf3 9. gxf3 Be7 10. O-O-O Rc8 11. Kb1 O-O 12. Rg1 Kh8 13. Bh3 b5 {1-0 (67) Erigaisi,A (2634)-Goryachkina,A (2602) Riga 2021}) 8. Qb3 {[%emt 0:18:05]} ({Reject} 8. Ng5 e6 $11) 8... Qb6 {[%emt 0:00:18]} 9. Nd2 {[%emt 0:05:44]} Be6 {[%emt 0:01:58]} 10. Qxb6 {[%emt 0:04:02]} axb6 {[%emt 0:00:05]} 11. e4 {[%emt 0:00:16]} g6 {[%emt 0:00:06]} 12. a4 {[%emt 0:06:07]} Bg7 {[%emt 0:14:13][%cal Ob6b5]} 13. Rc1 {[%emt 0:01:33]} Nh5 {[%emt 0:02:54][%csl LRd4,LRf4]} 14. Be3 {[%emt 0:00:07]} f5 {[%emt 0:00:03]} 15. exf5 {[%emt 0:09:31]} gxf5 {[%emt 0:00:58] Hoping for ...f4.} 16. Be2 {[%emt 0:00:22]} Nhf6 {[%emt 0:01:32]} 17. O-O {[%emt 0:04:59]} Ng4 {[%emt 0:14:07]} 18. Bc4 {[%emt 0:09:48]} Bxc4 {[%emt 0:19:51]} 19. Nxc4 {[%emt 0:00:06]} f4 {[%emt 0:04:22]} 20. Bxf4 {[%emt 0:02:02] Rfd1 is the strong threat.} Bxd4 {[%emt 0:00:06]} 21. Ne2 {[%emt 0:03:55]} (21. h3 $142 Ngf6 22. Rfe1) 21... Bc5 {[%emt 0:01:42]} (21... Bxf2+ $1 {is superior.} 22. Rxf2 Nxf2 23. Kxf2 Rxa4) 22. h3 {[%emt 0:01:49]} Ngf6 {[%emt 0:00:21]} (22... Nxf2 {keeps more tension.} 23. Rxf2 Rxa4 24. Bd2 Bxf2+ 25. Kxf2 Rf8+) 23. b3 {[%emt 0:00:24]} O-O {[%emt 0:04:40]} 24. Rcd1 {[%emt 0:04:01]} Nd5 {[%emt 0:00:43]} 25. Bd2 {[%emt 0:01:36]} N7f6 {[%emt 0:06:07]} 26. Ng3 {[%emt 0:00:55] Prevents Ne4.} b5 {[%emt 0:00:45]} 27. axb5 {[%emt 0:01:07]} cxb5 {[%emt 0:00:06]} 28. Ne3 {[%emt 0:01:44]} Nxe3 {[%emt 0:04:34]} 29. Bxe3 {[%emt 0:00:07]} Bxe3 {[%emt 0:00:11]} 30. fxe3 {[%emt 0:00:01][%cal Bf2e3,Be3e4,Be4e5][%mdl 32]} Rfd8 {[%emt 0:04:58]} 31. e4 {[%emt 0:01:36]} Rxd1 {[%emt 0:04:06]} 32. Rxd1 $11 {[%emt 0:00:28][%mdl 4096] Endgame KRN-KRN} Kf7 {[%emt 0:04:01]} 33. e5 {[%emt 0:00:47]} Ne8 {[%emt 0:00:24]} 34. Rd5 {[%emt 0:02:19]} Nc7 {[%emt 0:07:56]} 35. Rc5 {[%emt 0:00:13]} Ne6 {[%emt 0:00:27]} 36. Rxb5 {[%emt 0:00:11]} Ra2 {[%emt 0:00:38]} 37. Rb4 {[%emt 0:01:13]} Rb2 {[%emt 0:01:11]} 38. Nf5 {[%emt 0:02:15]} Nc5 {[%emt 0:02:02]} 39. Rb5 {[%emt 0:00:30]} b6 {[%emt 0:00:41]} 40. Rxb6 {[%emt 0:01:53]} Rxb3 {[%emt 0:00:07]} 41. Rh6 {[%emt 0:01:55]} Rb1+ {[%emt 0:00:27]} 42. Kh2 {[%emt 0:00:19]} Re1 {[%emt 0:01:02]} (42... Rb2 $14) 43. g4 $16 {[%emt 0:00:56]} ({Weaker is} 43. Rxh7+ Kg6 44. Rxe7 Kxf5 $11) 43... Rxe5 {[%emt 0:00:44]} 44. Rxh7+ {[%emt 0:00:05]} Kf6 {[%emt 0:00:15]} 45. h4 {[%emt 0:04:19] White is more active.} (45. Kg3 $16) 45... Re2+ {[%emt 0:01:29]} 46. Kg3 {[%emt 0:01:40]} e6 {[%emt 0:00:06]} (46... Re1 $16 47. Kf3 Rf1+ 48. Ke2 Rf4) 47. Nd4 {[%emt 0:01:11]} (47. Ne7 $18) 47... Re3+ $14 {[%emt 0:00:42]} 48. Nf3 {[%emt 0:00:22] aiming for h5.} Nd3 {[%emt 0:00:29]} (48... e5 $14) 49. g5+ $18 {[%emt 0:00:55]} Kg6 {[%emt 0:00:07] [#]} 50. Rh6+ {[%emt 0:00:41]} Kg7 {[%emt 0:00:32] [#]} 51. Rf6 $2 {[%emt 0:00:25]} (51. h5 $1 $18) 51... e5 $11 {[%emt 0:01:47]} 52. Kg2 {[%emt 0:01:18]} ({Don't take} 52. Kg4 $6 Re4+ 53. Kg3 Re3 $14) 52... Re2+ {[%emt 0:00:39]} 53. Kg1 {[%emt 0:00:28] With the idea h5.} Nf4 {[%emt 0:00:41]} (53... Re4 $11 {keeps the balance.}) 54. Kf1 $16 {[%emt 0:00:32][%cal Of6f4] And now Rxf4! would win.} Re4 {[%emt 0:00:13] [#]} 55. Nxe5 $1 {[%emt 0:03:03][%cal Of1f2] Black must now prevent Kf2!} Nd5 {[%emt 0:00:05]} 56. Rg6+ {[%emt 0:00:50]} Kh7 {[%emt 0:00:04]} 57. Re6 {[%emt 0:01:17]} (57. Rh6+ $14 Kg7 58. Nd7) 57... Rxh4 $11 {[%emt 0:00:21] The position is equal.} 58. Rd6 {[%emt 0:00:18]} Ne3+ {[%emt 0:00:46]} 59. Kf2 {[%emt 0:00:48]} Nf5 {[%emt 0:00:07]} 60. Rf6 {[%emt 0:01:46]} Rf4+ {[%emt 0:00:44]} 61. Kg1 {[%emt 0:00:08]} Nd4 {[%emt 0:01:24]} 62. Kg2 {[%emt 0:01:07]} Rxf6 {[%emt 0:00:19]} 63. gxf6 {[%emt 0:00:02]} Nc6 {[%emt 0:00:16]} 64. f7 {[%emt 0:00:45]} Kg7 {[%emt 0:00:04]} 65. Nxc6 {[%emt 0:00:05] Ne5 would kill now.} Kxf7 {[%emt 0:00:02] Weighted Error Value: White=0.16 (very precise) /Black=0.12 (very precise)} 1/2-1/2